bitfinex/quotes_ETHUSD_20250328
["timestamp","ask_amount","ask_price","bid_price","bid_amount"]
[1743185091972,6.06,1887.3,1887.0,10.51829]
[1743185093159,11.35858,1887.3,1887.0,5.219]
[1743185093681,0.7714,1887.2,1886.6,6.10491]
[1743185093860,11.35931,1887.1,1886.7,10.51411]
[1743185094055,6.06,1887.1,1886.7,10.51404]
[1743185094283,6.06,1887.1,1886.8,5.29997]
[1743185094782,6.06,1887.1,1886.7,10.51404]
[1743185094982,11.35914,1887.1,1886.7,15.8142]
[1743185095191,6.06,1887.1,1886.8,5.29997]
[1743185095483,6.06,1887.1,1886.8,10.59981]
[1743185095666,6.06,1887.1,1886.8,5.29984]
[1743185096057,6.06,1887.1,1886.8,5.29981]
[1743185096261,6.06,1887.1,1886.8,10.5997]
[1743185096660,6.06,1887.1,1886.8,5.29981]
[1743185096909,6.06,1887.1,1886.7,10.5142]
[1743185097198,16.65852,1887.1,1886.7,10.5142]
[1743185097374,11.35917,1887.1,1886.7,10.5142]
[1743185098089,11.35917,1887.1,1886.7,10.51412]
[1743185098589,5.29984,1886.9,1886.5,5.30079]
[1743185098757,10.59977,1886.9,1886.5,5.30079]
[1743185099087,5.29984,1886.9,1886.5,5.30079]
[1743185100297,5.29984,1886.9,1886.4,16.88211033]
[1743185100595,10.5996,1886.9,1886.4,5.203]
[1743185100798,10.5996,1886.9,1886.5,5.30064]
[1743185100974,5.29998,1886.8,1886.4,10.50401]
[1743185101170,5.29998,1886.8,1886.4,10.50396]
[1743185101492,0.8283,1886.7,1886.4,10.5041]
[1743185101693,0.8283,1886.7,1886.4,5.203]
[1743185101876,0.8283,1886.7,1886.5,5.30057]
[1743185102277,0.8283,1886.7,1886.4,10.50409]
[1743185102478,0.8283,1886.7,1886.4,10.50406]
[1743185103499,0.8283,1886.7,1886.4,15.80491]
[1743185103701,0.7822,1887.1,1886.6,0.7939]
[1743185104002,5.29754,1887.7,1887.2,5.29885]
[1743185104299,5.29783,1887.6,1887.2,15.80554]
[1743185104463,5.29754,1887.7,1887.3,5.29855]
[1743185104668,10.59454,1887.8,1887.3,10.59686]
[1743185104904,5.29746,1887.7,1887.3,10.59672]
[1743185105279,10.59453,1887.8,1887.3,10.59672]
[1743185105479,5.29748,1887.7,1887.3,5.29831]
[1743185106277,3.79675517,1887.8,1887.0,0.7939]
[1743185106507,5.29897,1887.2,1886.7,11.66467908]
[1743185106685,5.29924,1887.1,1886.8,5.206]
[1743185106884,5.29897,1887.2,1886.8,10.50595]
[1743185107576,10.59805,1887.2,1886.8,10.50595]
[1743185107781,11.35636,1887.3,1886.9,5.29967]
[1743185108613,5.29888,1887.2,1886.8,10.50595]
[1743185108974,5.29888,1887.2,1886.8,10.50581]
[1743185109208,5.29888,1887.2,1886.8,15.80568]
[1743185109374,5.29888,1887.2,1886.8,10.50581]
[1743185109574,5.29888,1887.2,1886.8,15.80562]
[1743185109774,5.29888,1887.2,1886.8,5.206]
[1743185109775,5.29914,1887.1,1886.8,5.206]
[1743185109992,10.59852,1887.1,1886.8,5.206]
[1743185110197,3.759,1887.3,1886.9,5.29947]
[1743185110391,9.05757,1887.3,1886.9,5.29947]
[1743185110789,14.35641,1887.3,1886.9,5.29947]
[1743185111171,9.05757,1887.3,1886.9,5.29947]
[1743185111376,14.35631,1887.3,1886.9,5.29947]
[1743185111677,9.05757,1887.3,1886.9,5.29947]
[1743185111980,5.29886,1887.2,1886.9,5.29947]
[1743185112176,9.05757,1887.3,1886.9,5.29947]
[1743185112378,5.29887,1887.2,1886.8,15.80581]
[1743185112579,10.59791,1887.2,1886.8,10.50585]
[1743185112782,5.29981,1886.9,1886.5,5.30077]
[1743185113329,3.0,1887.0,1886.5,10.49278]
[1743185113681,5.2998,1886.9,1886.5,10.49278]
[1743185114590,0.40497353,1887.4,1886.9,5.29956]
[1743185114591,6.10368,1887.3,1886.9,5.29956]
[1743185114919,0.805,1887.3,1886.9,10.49256]
[1743185115221,6.10282,1887.6,1887.2,5.29875]
[1743185115423,8.29803,1887.5,1887.1,5.29893]
[1743185115596,13.5962,1887.5,1887.1,5.29893]
[1743185115786,0.805,1887.6,1886.9,11.53075965]
[1743185115986,5.29769,1887.7,1887.3,5.29855]
[1743185116198,5.29774,1887.6,1887.2,5.29883]
[1743185118393,5.29676,1888.0,1887.7,5.248]
[1743185118817,5.29691,1887.9,1887.7,5.248]
[1743185119098,5.29691,1887.9,1887.5,0.8295]
[1743185119099,0.8272,1887.8,1887.5,5.249]
[1743185119486,0.8272,1887.8,1887.3,6.12795]
[1743185119487,5.29803,1887.5,1887.0,1.85210705]
[1743185119690,5.29803,1887.5,1887.0,6.11414]
[1743185119991,9.09456517,1887.6,1887.1,5.29912]
[1743185120920,5.29809,1887.5,1887.0,6.11414]
[1743185121128,5.29809,1887.5,1887.0,6.11431]
[1743185121423,9.09448517,1887.6,1887.0,6.11413]
[1743185121823,9.09448517,1887.6,1887.1,5.29901]
[1743185121824,3.0,1887.6,1887.1,5.29901]
[1743185122021,3.0,1887.6,1887.2,5.29875]
[1743185122202,8.29773,1887.6,1887.1,5.29908]
[1743185122603,8.29773,1887.6,1887.0,6.11429]
[1743185123119,5.29815,1887.5,1887.0,0.8149]
[1743185123320,5.29833,1887.4,1887.0,0.8149]
[1743185124093,5.29815,1887.5,1887.0,6.1143]
[1743185124326,10.59629,1887.5,1887.0,6.1143]
[1743185124630,10.59692,1887.4,1886.9,19.79968]
[1743185124939,11.36139,1887.4,1886.9,19.79968]
[1743185125100,5.29857,1887.3,1886.9,19.79968]
[1743185125302,5.29857,1887.3,1886.9,14.5]
[1743185125549,5.29857,1887.3,1886.9,19.79969]
[1743185126232,9.06273,1887.4,1886.9,19.79969]
[1743185126534,14.36122,1887.4,1886.9,19.79969]
[1743185126702,9.06273,1887.4,1886.9,19.79969]
[1743185127034,14.36125,1887.4,1886.9,19.79969]
[1743185127335,5.29863,1887.3,1886.9,14.5]
[1743185127534,9.06273,1887.4,1886.9,14.5]
[1743185127739,9.06273,1887.4,1886.9,19.79966]
[1743185127939,14.36121,1887.4,1886.9,19.79966]
[1743185128238,9.06273,1887.4,1886.9,21.36526185]
[1743185128417,9.06273,1887.4,1886.9,26.66484185]
[1743185128619,5.2986,1887.3,1886.9,21.36526185]
[1743185128841,5.2986,1887.3,1886.9,16.06573185]
[1743185129039,5.2986,1887.3,1886.9,5.223]
[1743185129240,5.2995,1887.0,1886.6,6.0038]
[1743185129454,5.29924,1887.1,1886.7,19.80014]
[1743185129738,5.29924,1887.1,1886.7,14.5]
[1743185130113,5.29924,1887.1,1886.7,19.80025]
[1743185130439,5.29857,1887.3,1886.7,22.910647]
[1743185130641,5.29886,1887.2,1886.8,5.29988]
[1743185131612,5.29886,1887.2,1886.7,28.210727]
[1743185131817,5.29886,1887.2,1886.7,28.210627]
[1743185133443,5.29886,1887.2,1886.8,5.29989]
[1743185134939,0.7985,1887.6,1886.9,0.84589884]
[1743185135140,5.29729,1887.8,1887.4,5.29829]
[1743185135344,5.29729,1887.8,1887.3,5.29836]
[1743185135639,10.59464,1887.8,1887.3,5.29836]
[1743185135937,5.29729,1887.8,1887.3,10.59679]
[1743185136139,0.7985,1887.9,1887.2,0.7929]
[1743185136343,6.11008,1887.5,1887.1,5.221]
[1743185136542,11.40826,1887.5,1887.1,5.221]
[1743185136915,5.29829,1887.4,1887.1,5.221]
[1743185138349,0.8119,1887.5,1887.1,10.51996]
[1743185138520,6.10992,1887.5,1887.1,10.51994]
[1743185138717,6.10992,1887.5,1887.1,15.81895]
[1743185138919,6.10992,1887.5,1887.1,10.51994]
[1743185139317,11.40817,1887.5,1887.1,5.221]
[1743185139518,6.10992,1887.5,1887.1,10.52003]
[1743185139915,6.10285,1887.7,1887.2,5.2987]
[1743185140119,4.19633912,1888.0,1887.2,0.82238977]
[1743185140120,0.8054,1887.9,1887.2,0.82238977]
[1743185140361,0.8054,1887.9,1887.5,5.29788]
[1743185140519,6.10229,1887.9,1887.5,5.219]
[1743185141545,11.39937,1887.9,1887.5,10.51701]
[1743185141854,6.10229,1887.9,1887.5,10.51701]
[1743185142052,0.8054,1887.9,1887.5,15.81493]
[1743185142230,6.1024,1887.9,1887.5,10.51692]
[1743185142430,6.1024,1887.9,1887.6,14.5]
[1743185143555,5.297,1887.9,1887.6,15.3216]
[1743185145852,5.297,1887.9,1887.6,0.8216]
[1743185147056,10.59407,1887.9,1887.5,19.719]
[1743185147632,5.29717,1887.8,1887.5,19.719]
[1743185148060,5.297,1887.9,1887.5,19.719]
[1743185148061,10.594,1887.9,1887.5,19.719]
[1743185148455,5.29717,1887.8,1887.5,19.719]
[1743185148926,5.29689,1887.9,1887.5,25.0169]
[1743185150261,10.59395,1887.9,1887.5,19.719]
[1743185150633,5.29689,1887.9,1887.5,25.01693]
[1743185151356,5.29665,1888.0,1887.5,25.01689]
[1743185151556,10.59344,1888.0,1887.5,25.01689]
[1743185151764,5.29689,1887.9,1887.5,25.01689]
[1743185152264,0.8269,1888.1,1887.7,5.29737]
[1743185152481,10.59245,1888.2,1887.7,5.29737]
[1743185152693,10.59245,1888.2,1887.7,10.59464]
[1743185152898,5.29571,1888.4,1887.9,0.7574]
[1743185153068,5.29571,1888.4,1888.0,5.2966]
[1743185153762,5.29567,1888.4,1888.1,14.5]
[1743185153969,5.29579,1888.3,1887.9,11.24108]
[1743185154268,5.29617,1888.2,1887.7,11.35764]
[1743185154461,5.29617,1888.2,1887.8,19.684]
[1743185154665,5.29617,1888.2,1887.8,24.98115]
[1743185155069,5.29617,1888.2,1887.8,30.27818]
[1743185155389,13.59119,1888.4,1887.9,5.29676]
[1743185155887,8.29552,1888.4,1888.0,5.29658]
[1743185156055,8.29552,1888.4,1888.1,0.7989]
[1743185156589,3.0,1888.4,1888.1,0.7989]
[1743185156786,8.29565,1888.4,1887.9,5.29684]
[1743185156957,8.29565,1888.4,1887.9,8.7431651]
[1743185157285,5.29585,1888.3,1887.9,8.7431651]
[1743185157480,5.29585,1888.3,1888.0,14.5]
[1743185158659,5.29585,1888.3,1887.9,6.11694]
[1743185158888,5.29655,1888.1,1887.9,5.172]
[1743185159077,5.29661,1888.0,1887.7,5.177]
[1743185159982,0.7912,1889.0,1888.0,0.8093]
[1743185160175,0.7912,1889.0,1888.5,6.11827]
[1743185160359,10.58894,1888.8,1888.5,20.5621]
[1743185160564,3.0,1889.1,1888.3,5.238]
[1743185160869,0.8303,1888.6,1888.3,5.238]
[1743185161065,6.06,1888.5,1888.4,14.5]
[1743185161562,6.06,1888.5,1888.4,19.79548]
[1743185161762,6.06,1888.5,1888.4,22.298828]
[1743185162470,6.06,1888.5,1888.4,23.075828]
[1743185162663,6.06,1889.0,1888.7,5.29443]
[1743185162864,6.06,1889.1,1888.8,0.777]
[1743185163366,11.35363,1889.1,1888.7,5.243]
[1743185163579,6.06,1889.1,1888.7,10.53764]
[1743185163780,11.35353,1889.1,1888.7,12.196584]
[1743185164070,6.06,1889.1,1888.7,17.491084]
[1743185164516,6.06,1889.1,1888.7,12.196444]
[1743185164808,6.06,1889.1,1888.7,17.490944]
[1743185165180,6.06,1889.1,1888.7,12.196494]
[1743185165531,11.35353,1889.1,1888.7,12.196494]
[1743185165682,6.06,1889.1,1888.7,12.196494]
[1743185166794,6.06,1889.1,1888.6,0.7569]
[1743185167121,6.06,1889.1,1888.7,15.81713]
[1743185167325,6.06,1889.1,1888.7,10.52254]
[1743185167494,11.35362,1889.1,1888.7,5.228]
[1743185169912,11.35362,1889.1,1888.7,10.52263]
[1743185170606,6.06,1889.1,1888.7,10.52263]
[1743185170795,11.35362,1889.1,1888.7,5.228]
[1743185170995,5.29392,1889.0,1888.7,5.228]
[1743185172107,16.64725,1889.1,1888.7,5.228]
[1743185172310,5.29382,1889.0,1888.7,5.228]
[1743185172689,16.64736,1889.1,1888.7,5.228]
[1743185172884,11.35362,1889.1,1888.7,5.228]
[1743185173182,11.35362,1889.1,1888.7,10.52247]
[1743185173388,6.06,1889.1,1888.8,5.29424]
[1743185173616,6.06,1889.1,1888.9,6.10146]
[1743185173817,6.06,1889.1,1888.9,0.8075]
[1743185174818,6.06,1889.1,1888.9,6.10158]
[1743185175223,6.06,1889.1,1888.9,0.8075]
[1743185176695,6.06,1889.1,1888.9,21.741182]
[1743185177095,6.06,1889.1,1888.9,21.741082]
[1743185177495,6.06,1889.1,1888.9,16.447102]
[1743185178125,6.06,1889.1,1889.0,5.2938]
[1743185178621,3.0,1889.4,1889.0,10.58744]
[1743185178622,9.06,1889.4,1889.0,10.58744]
[1743185178829,9.06,1889.4,1889.1,6.257744]
[1743185179197,6.06,1889.4,1889.1,6.257744]
[1743185179423,6.06,1889.4,1889.2,6.04583]
[1743185179606,6.06,1889.4,1889.2,6.0457]
[1743185180011,6.06,1889.4,1889.2,0.7526]
[1743185180210,6.06,1889.4,1889.2,6.04573]
[1743185180519,6.06,1889.4,1889.2,6.04569]
[1743185180716,6.06,1889.4,1889.3,15.104569]
[1743185180917,6.06,1889.4,1889.3,14.5]
[1743185181920,6.06,1889.4,1889.2,6.04576]
[1743185182120,6.06,1889.4,1885.9,5.99659594]
[1743185182121,13.21796658,1889.3,1888.4,6.0102]
[1743185182324,5.2952,1888.5,1888.0,0.7785]
[1743185182628,5.29602,1888.3,1888.0,1.386031]
[1743185182839,5.29632,1888.1,1888.0,0.607531]
[1743185183050,11.35632,1888.1,1887.8,5.228]
[1743185183245,6.06,1888.1,1887.9,14.5]
[1743185183903,11.35637,1888.1,1887.9,14.5]
[1743185184232,16.6529,1888.1,1887.9,14.5]
[1743185184532,11.35637,1888.1,1887.9,14.5]
[1743185185126,5.29661,1888.0,1887.9,14.5]
[1743185185322,5.29661,1888.0,1887.8,5.224]
[1743185185723,11.35689,1887.9,1887.8,14.5]
[1743185186340,5.29746,1887.7,1887.5,5.228]
[1743185186636,6.06,1887.6,1887.5,5.228]
[1743185186941,11.35785,1887.6,1887.5,14.5]
[1743185187125,11.35785,1887.6,1886.9,5.29952]
[1743185187126,6.06,1887.6,1887.2,5.228]
[1743185187329,10.59679,1887.4,1887.2,5.228]
[1743185187527,5.2994,1887.1,1886.8,14.5]
[1743185187825,6.06,1887.0,1886.8,14.5]
[1743185188025,5.29945,1887.0,1886.8,19.734]
[1743185188224,10.59909,1887.0,1886.8,19.734]
[1743185188602,5.29945,1887.0,1886.8,14.5]
[1743185188837,6.06,1886.9,1886.5,5.233]
[1743185189040,5.30025,1886.7,1886.4,6.0651]
[1743185189243,5.30025,1886.7,1886.5,14.5]
[1743185189244,11.36025,1886.7,1886.5,14.5]
[1743185190012,5.30054,1886.6,1886.5,14.5]
[1743185190214,11.36054,1886.6,1886.5,14.5]
[1743185190918,11.36054,1886.6,1886.3,5.44]
[1743185190919,5.30102,1886.5,1886.3,5.44]
[1743185191120,10.6021,1886.5,1886.3,5.44]
[1743185191427,5.3011,1886.4,1886.3,19.94]
[1743185191631,5.30102,1886.5,1886.3,19.94]
[1743185191807,5.30094,1886.5,1886.3,14.707]
[1743185192234,10.60198,1886.5,1886.3,14.707]
[1743185192424,5.3011,1886.4,1886.3,14.707]
[1743185193410,11.3611,1886.4,1886.3,14.707]
[1743185193611,6.06,1886.4,1886.3,14.707]
[1743185194346,11.3611,1886.4,1886.3,14.707]
[1743185195244,6.06,1886.4,1886.3,14.707]
[1743185195538,6.06,1886.4,1886.3,14.5]
[1743185196529,6.06,1886.4,1886.3,20.58678]
[1743185196739,6.06,1886.4,1886.3,17.2584]
[1743185197955,6.06,1886.4,1886.3,23.63202868]
[1743185198120,6.06,1886.7,1886.6,5.30054]
[1743185198453,6.06,1887.0,1886.9,5.29969]
[1743185198652,6.06,1887.4,1887.0,6.12844]
[1743185198819,6.06,1887.4,1887.1,19.73]
[1743185199219,11.35839,1887.4,1887.1,19.73]
[1743185200469,11.35832,1887.4,1887.1,22.315844]
[1743185201046,16.65688,1887.4,1887.1,19.73]
[1743185201227,5.29863,1887.3,1887.1,19.73]
[1743185201430,5.29885,1887.2,1887.1,14.5]
[1743185201630,10.59856,1887.1,1886.8,5.225]
[1743185201929,5.29948,1887.0,1886.8,5.225]
[1743185202129,11.35948,1887.0,1886.8,5.225]
[1743185202328,6.06,1887.0,1886.8,5.225]
[1743185202857,5.30007,1886.8,1886.4,6.07019]
[1743185203046,6.06,1886.7,1886.6,5.223]
[1743185203454,6.06,1886.7,1886.6,19.723]
[1743185204668,5.30025,1886.7,1886.6,14.5]
[1743185206265,11.36025,1886.7,1886.6,14.5]
[1743185209638,11.36025,1886.7,1886.1,0.8691]
[1743185209639,5.30166,1886.2,1886.1,0.8691]
[1743185209838,11.36166,1886.2,1886.1,0.05]
[1743185212579,14.36166,1886.2,1886.1,0.05]
[1743185213073,6.01,1886.1,1885.6,14.5]
[1743185213276,5.30291,1885.8,1885.6,14.5]
[1743185214253,5.30253,1885.9,1885.6,14.5]
[1743185214457,5.30288,1885.8,1885.6,14.5]
[1743185214689,5.30255,1885.9,1885.6,14.5]
[1743185214859,6.01,1886.0,1885.7,5.30306]
[1743185215380,6.01,1886.0,1885.9,5.3025]
[1743185215771,6.01,1886.0,1885.8,11.40173]
[1743185215951,6.01,1886.0,1885.8,6.09903]
[1743185216154,6.01,1886.0,1885.9,14.5]
[1743185216767,6.01,1886.0,1885.5,5.30351]
[1743185216768,15.90756634,1886.0,1885.5,5.30351]
[1743185216971,5.3026,1885.9,1885.6,5.246]
[1743185217378,15.90756634,1886.0,1885.7,14.5]
[1743185217597,6.8147,1886.0,1885.7,19.80306]
[1743185217905,6.8147,1886.0,1885.7,5.30285]
[1743185218191,5.30289,1885.8,1885.6,5.246]
[1743185218371,5.30261,1885.9,1885.6,5.246]
[1743185218769,12.11692,1886.0,1885.6,5.246]
[1743185218961,12.11692,1886.0,1885.8,5.30253]
[1743185218962,6.01,1886.0,1885.8,5.30253]
[1743185219165,6.01,1886.0,1885.9,5.3025]
[1743185219590,6.01,1886.0,1885.8,6.06343]
[1743185220282,6.01,1886.0,1885.8,0.7609]
[1743185220499,6.01,1886.0,1885.3,5.30392]
[1743185220500,6.10919,1885.9,1885.7,5.249]
[1743185220796,6.10919,1885.9,1885.6,5.30333]
[1743185221096,11.41189,1885.9,1885.5,10.55346]
[1743185221391,6.10919,1885.9,1885.6,5.30332]
[1743185221571,11.4119,1885.9,1885.5,10.55346]
[1743185221775,6.10919,1885.9,1885.5,10.55346]
[1743185221992,6.10919,1885.9,1885.5,15.85692]
[1743185222778,0.8066,1885.9,1885.6,5.30333]
[1743185222965,0.8066,1885.9,1885.6,5.30324]
[1743185223165,6.01,1886.0,1885.7,5.3029]
[1743185223361,6.01,1886.0,1885.7,10.60574]
[1743185223566,6.01,1886.0,1885.7,5.30284]
[1743185224005,6.01,1886.0,1885.6,5.3033]
[1743185224168,6.01,1886.0,1885.5,10.54651]
[1743185224169,5.30259,1885.9,1885.5,10.54651]
[1743185224372,5.30259,1885.9,1885.5,15.84994]
[1743185224592,5.30259,1885.9,1885.5,10.54643]
[1743185224787,15.10290634,1886.0,1885.6,5.30326]
[1743185224788,11.31226,1886.0,1885.6,5.30326]
[1743185224993,11.31226,1886.0,1885.6,10.60648]
[1743185225393,5.30252,1885.9,1885.5,10.54651]
[1743185225699,11.31291,1885.8,1885.5,5.243]
[1743185225900,11.31291,1885.8,1885.5,10.54659]
[1743185226199,11.31291,1885.8,1885.4,16.66288]
[1743185226896,6.01,1885.8,1885.5,5.30361]
[1743185227271,6.01,1885.8,1885.5,10.60714]
[1743185227513,11.31284,1885.8,1885.5,5.30363]
[1743185228311,11.31284,1885.8,1885.4,11.35917]
[1743185228513,6.01,1885.8,1885.5,5.3034]
[1743185228915,6.01,1885.8,1885.6,5.30331]
[1743185229410,6.01,1885.8,1885.7,6.13217]
[1743185229606,6.01,1885.8,1885.7,6.18519468]
[1743185229928,10.60135,1886.6,1886.2,5.30155]
[1743185230085,6.06,1886.3,1886.2,5.248]
[1743185230698,6.06,1886.3,1886.2,10.54966]
[1743185230898,6.06,1886.3,1886.2,5.248]
[1743185233015,6.06,1886.3,1886.2,10.54966]
[1743185233517,6.06,1886.3,1886.2,5.248]
[1743185234521,11.36099,1886.5,1886.2,5.248]
[1743185236431,11.36099,1886.5,1886.2,10.54964]
[1743185236632,6.06,1886.5,1886.2,10.54964]
[1743185236922,6.06,1886.5,1886.2,10.5495]
[1743185237320,6.06,1886.5,1886.2,15.85104]
[1743185237529,6.06,1886.5,1886.2,10.5495]
[1743185237725,6.06,1886.5,1886.2,5.248]
[1743185237900,6.06,1886.5,1886.4,5.3011]
[1743185238615,6.06,1886.5,1886.3,5.30115]
[1743185239323,6.06,1886.5,1886.3,10.60239]
[1743185239525,6.06,1886.5,1886.4,5.3011]
[1743185239727,6.06,1886.5,1886.3,5.30115]
[1743185239929,6.06,1886.5,1886.3,11.657285]
[1743185240226,6.06,1886.5,1886.4,5.3011]
[1743185240427,6.06,1886.7,1886.6,5.30054]
[1743185240624,6.06,1886.9,1886.6,10.60108]
[1743185240801,6.06,1886.9,1886.6,10.51754]
[1743185241006,11.35973,1886.9,1886.6,5.217]
[1743185241198,5.30007,1886.8,1886.6,5.217]
[1743185241909,5.30054,1886.6,1886.5,5.213]
[1743185243603,0.7629,1886.7,1886.2,0.8263]
[1743185243809,5.30101,1886.5,1886.2,5.212]
[1743185244719,5.30099,1886.5,1886.2,5.212]
[1743185245641,5.30099,1886.5,1886.2,10.51364]
[1743185245818,16.66127,1886.6,1886.2,10.51364]
[1743185246129,16.66127,1886.6,1886.3,14.5]
[1743185246426,6.06,1886.6,1886.3,19.80125]
[1743185246738,6.06,1886.6,1886.4,5.30096]
[1743185247399,11.36054,1886.6,1886.5,14.5]
[1743185248197,6.06,1886.6,1886.5,14.5]
[1743185248604,6.06,1886.6,1886.5,19.80082]
[1743185249108,6.06,1886.8,1886.5,19.80082]
[1743185249312,6.06,1886.8,1886.6,15.80191]
[1743185249527,6.06,1886.9,1886.6,10.5014]
[1743185249933,16.65971,1886.9,1886.6,5.201]
[1743185250098,5.30008,1886.8,1886.6,5.201]
[1743185250436,5.30025,1886.7,1886.6,5.201]
[1743185250621,5.30054,1886.6,1886.4,5.196]
[1743185251430,10.6013,1886.6,1886.4,5.196]
[1743185251618,5.30088,1886.5,1886.2,11.261]
[1743185251824,6.06,1886.5,1886.2,11.261]
[1743185252135,6.06,1886.5,1886.3,14.5]
[1743185252739,5.30144,1886.3,1886.0,1.07759421]
[1743185252921,5.30177,1886.2,1885.9,5.198]
[1743185253433,5.30177,1886.2,1886.0,14.5]
[1743185253630,5.30194,1886.1,1885.7,5.30305]
[1743185253931,5.303,1885.8,1885.4,7.19002893]
[1743185254138,5.30295,1885.8,1885.6,5.202]
[1743185254635,5.3035,1885.6,1885.1,0.7967]
[1743185254815,6.06,1885.5,1885.1,11.30635]
[1743185255016,6.06,1885.5,1885.3,5.30401]
[1743185255208,6.06,1885.5,1885.3,10.60806]
[1743185255908,6.06,1885.5,1885.4,19.80391]
[1743185256333,6.06,1885.5,1885.4,14.5]
[1743185256541,5.30363,1885.5,1885.1,0.7967]
[1743185256711,6.13063,1885.5,1885.1,11.31541]
[1743185256915,5.30397,1885.4,1885.1,6.0107]
[1743185257132,5.30432,1885.3,1885.2,14.5]
[1743185257735,5.30397,1885.4,1885.2,14.5]
[1743185258137,5.30341,1885.6,1885.2,21.77577]
[1743185258339,5.30392,1885.4,1885.2,14.5]
[1743185258560,5.30419,1885.3,1885.2,19.715]
[1743185258737,6.10902,1885.4,1885.2,19.715]
[1743185259438,5.30392,1885.4,1885.2,19.715]
[1743185260163,5.30364,1885.5,1885.2,25.01946]
[1743185260364,10.60746,1885.5,1885.2,19.715]
[1743185260533,5.30364,1885.5,1885.2,19.715]
[1743185260739,5.30396,1885.4,1885.2,19.715]
[1743185260969,5.30484,1885.1,1884.6,0.8122]
[1743185261172,6.06,1885.0,1884.8,5.3055]
[1743185261527,6.06,1885.0,1884.8,14.5]
[1743185262025,6.06,1885.0,1884.8,19.8054]
[1743185262836,6.06,1885.0,1884.8,19.8055]
[1743185263258,6.06,1885.0,1884.8,14.5]
[1743185265751,11.36511,1885.0,1884.8,14.5]
[1743185266363,6.06,1885.0,1884.8,14.5]
[1743185266564,6.06,1885.0,1884.8,19.80543]
[1743185266763,6.06,1885.1,1884.8,21.786015]
[1743185267483,11.36494,1885.1,1884.8,14.5]
[1743185269355,11.36494,1885.1,1884.8,19.80555]
[1743185269958,6.06,1885.1,1884.8,25.11102]
[1743185270163,6.06,1885.1,1884.9,5.30515]
[1743185270363,6.06,1885.4,1885.2,5.30434]
[1743185270571,6.06,1885.4,1885.2,5.30424]
[1743185271294,6.06,1885.4,1885.2,10.60859]
[1743185271598,6.06,1885.4,1885.2,5.30424]
[1743185271758,6.06,1885.4,1885.0,11.29739]
[1743185271759,11.36404,1885.4,1885.0,11.29739]
[1743185271958,5.30432,1885.3,1885.0,11.29739]
[1743185272194,11.36402,1885.4,1885.0,16.60226]
[1743185272394,6.06,1885.4,1885.1,5.30461]
[1743185272600,5.30423,1885.3,1885.0,5.219]
[1743185272803,10.60867,1885.3,1885.0,5.219]
[1743185273306,5.30475,1885.1,1885.0,5.219]
[1743185273468,5.30475,1885.1,1884.8,20.62088]
[1743185273802,5.30475,1885.1,1884.8,14.5]
[1743185273983,5.30475,1885.1,1884.8,19.80558]
[1743185274961,5.30475,1885.1,1884.7,10.52372]
[1743185275494,5.30453,1885.2,1884.8,19.80559]
[1743185275675,3.7588,1885.4,1884.8,14.5]
[1743185275858,5.30371,1885.5,1885.2,5.30447]
[1743185276055,11.36371,1885.5,1885.2,5.30447]
[1743185276483,6.06,1885.5,1885.2,19.80432]
[1743185276789,6.06,1885.5,1885.3,5.30418]
[1743185276961,6.06,1885.5,1885.2,5.30432]
[1743185276962,11.36363,1885.5,1885.2,5.30432]
[1743185277490,11.36363,1885.5,1885.2,19.80432]
[1743185277675,6.06,1885.5,1885.2,25.10868]
[1743185277875,6.06,1885.5,1885.2,14.5]
[1743185278080,5.30391,1885.4,1885.2,14.5]
[1743185278890,16.66767,1885.5,1885.2,14.5]
[1743185279057,10.60812,1885.4,1885.2,14.5]
[1743185279263,5.30401,1885.4,1885.2,14.5]
[1743185279573,10.60809,1885.4,1885.0,10.51288]
[1743185280190,5.30401,1885.4,1885.0,15.81779]
[1743185280391,5.30401,1885.4,1885.0,12.169849]
[1743185280766,10.60809,1885.4,1885.1,14.5]
[1743185280961,10.60809,1885.4,1884.8,1.07028889]
[1743185280962,5.30447,1885.2,1884.8,10.51046]
[1743185281166,6.06,1885.1,1884.8,5.205]
[1743185281472,6.06,1885.1,1884.8,19.705]
[1743185281473,5.30504,1885.0,1884.8,19.705]
[1743185281994,5.30504,1885.0,1884.8,14.5]
[1743185282563,11.36479,1885.1,1884.8,19.8056]
[1743185282794,11.36479,1885.1,1884.8,14.5]
[1743185282982,5.30512,1885.0,1884.8,14.5]
[1743185283298,11.36479,1885.1,1884.8,19.80559]
[1743185284096,5.30532,1884.9,1884.8,14.5]
[1743185284295,5.30532,1884.9,1884.6,6.06684]
[1743185284476,5.30532,1884.9,1884.6,7.83171983]
[1743185284792,10.61035,1885.0,1884.7,14.5]
[1743185284999,5.30534,1884.9,1884.7,14.5]